fUST/lending_fUST_20241103
["ID","MTS","AMOUNT","RATE_DAILY","PERIOD"]
[341202230,1730632246008,-272.558883,0.00031231,7]
[341202231,1730632246019,-298.492035,0.00031231,7]
[341202232,1730632246030,-298.492033,0.00031231,7]
[341202233,1730632246042,-303.39742225,0.00031273,5]
[341202234,1730632246053,-500.0,0.00031273,5]
[341202235,1730632246065,-631.80188877,0.00031273,3]
[341202236,1730632246076,-500.0,0.00031273,5]
[341202237,1730632246086,-578.02,0.00031357,4]
[341202238,1730632246096,-500.0,0.00031357,4]
[341202239,1730632246106,-691.71,0.00031357,4]
[341202240,1730632246116,-4256.03,0.00031357,3]
[341202241,1730632246126,-180.69786622,0.00031358,4]
[341202242,1730632246137,-500.0,0.00031358,4]
[341202243,1730632246149,-500.0,0.00031358,4]
[341202244,1730632246160,-500.0,0.00031358,4]
[341202245,1730632246172,-373.8,0.00031358,4]
[341202246,1730632246182,-500.0,0.00031358,4]
[341202247,1730632246192,-500.0,0.00031358,4]
[341202248,1730632246201,-500.0,0.00031358,4]
[341202249,1730632246210,-500.0,0.00031358,4]
[341202250,1730632246219,-500.0,0.00031358,4]
[341202251,1730632246228,-500.0,0.00031358,4]
[341202253,1730632246239,-600.0,0.00031359,2]
[341202255,1730632246249,-704.83,0.0003136,4]
[341202257,1730632246259,-151.0,0.00031425,120]
[341202258,1730632246269,-198.627615,0.0003146,2]
[341202259,1730632246279,-501.29902778,0.00031573,5]
[341202260,1730632246289,-500.0,0.00031631,4]
[341202261,1730632246299,-691.71,0.00031631,4]
[341202262,1730632246309,-4256.03,0.00031631,3]
[341202263,1730632246319,-500.0,0.00031632,4]
[341202264,1730632246328,-500.0,0.00031632,4]
[341202265,1730632246338,-500.0,0.00031632,4]
[341202266,1730632246349,-607.42,0.00031632,4]
[341202267,1730632246359,-500.0,0.00031632,4]
[341202268,1730632246369,-500.0,0.00031632,4]
[341202269,1730632246378,-500.0,0.00031632,4]
[341202270,1730632246388,-298.12,0.00031632,4]
[341202271,1730632246397,-500.0,0.00031632,4]
[341202272,1730632246406,-704.83,0.00031634,4]
[341202273,1730632246415,-501.97999244,0.00031776,4]
[341202274,1730632246425,-500.0,0.00031905,4]
[341202275,1730632246434,-691.71,0.00031905,4]
[341202276,1730632246443,-4256.03,0.00031905,3]
[341202277,1730632246453,-500.0,0.00031906,4]
[341202278,1730632246462,-500.0,0.00031906,4]
[341202279,1730632246473,-500.0,0.00031906,4]
[341202280,1730632246483,-242.35,0.00031906,4]
[341202281,1730632246495,-500.0,0.00031906,4]
[341202282,1730632246507,-500.0,0.00031906,4]
[341202283,1730632246517,-500.0,0.00031906,4]
[341202284,1730632246528,-704.83,0.00031908,4]
[341202285,1730632246538,-999.0,0.00031945,120]
[341202286,1730632246548,-150.112233,0.00032,14]
[341202287,1730632246561,-500.0,0.00032179,4]
[341202288,1730632246572,-691.71,0.00032179,4]
[341202289,1730632246585,-4256.03,0.00032179,3]
[341202290,1730632246596,-500.0,0.0003218,4]
[341202291,1730632246605,-500.0,0.0003218,4]
[341202292,1730632246614,-500.0,0.0003218,4]
[341202293,1730632246623,-620.73024096,0.0003218,4]
[341202294,1730632246632,-500.0,0.0003218,4]
[341202295,1730632246641,-500.0,0.0003218,4]
[341202296,1730632246650,-704.83,0.00032182,4]
[341202297,1730632246659,-150.112233,0.000322,18]
[341202298,1730632246668,-500.0,0.00032206,2]
[341202299,1730632246678,-19105.63124439,0.00032207,60]
[341202300,1730632246689,-198.627615,0.00032247,2]
[341202301,1730632246699,-150.112233,0.000323,16]
[341202302,1730632246709,-150.112233,0.000324,17]
[341202303,1730632246719,-150.0,0.000324,2]
[341202304,1730632246729,-150.112233,0.000324,13]
[341202305,1730632246739,-500.0,0.0003241,120]
[341202306,1730632246750,-500.0,0.0003241,120]
[341202307,1730632246761,-164.98,0.0003241,120]
[341202308,1730632246770,-500.0,0.0003241,120]
[341202309,1730632246780,-500.0,0.0003241,120]
[341202310,1730632246791,-500.0,0.0003241,120]
[341202311,1730632246800,-500.0,0.0003241,120]
[341202312,1730632246810,-500.0,0.0003241,120]
[341202313,1730632246820,-452.84,0.0003241,120]
[341202314,1730632246832,-500.0,0.00032453,4]
[341202315,1730632246842,-691.71,0.00032453,4]
[341202316,1730632246854,-4256.03,0.00032453,3]
[341202317,1730632246865,-500.0,0.00032454,4]
[341202318,1730632246874,-500.0,0.00032454,4]
[341202319,1730632246884,-500.0,0.00032454,4]
[341202320,1730632246893,-500.0,0.00032454,4]
[341202321,1730632246903,-500.0,0.00032454,4]
[341202322,1730632246911,-704.83,0.00032456,4]
[341202323,1730632246921,-1069.56,0.00032485,3]
[341202324,1730632246930,-408.14,0.00032485,3]
[341202325,1730632246940,-816.26,0.00032495,3]
[341202326,1730632246949,-150.112233,0.000325,17]
[341202327,1730632246959,-1000.0,0.00032542,5]
[341202328,1730632246968,-1247.40783275,0.00032543,2]
[341202329,1730632246978,-150.112233,0.000326,17]
[341202330,1730632246987,-1000.0,0.00032642,5]
[341202331,1730632246996,-1000.0,0.00032642,5]
[341202332,1730632247006,-150.112233,0.000327,18]
[341202333,1730632247015,-150.112233,0.000327,15]
[341202334,1730632247024,-465.16,0.00032727,4]
[341202335,1730632247033,-691.71,0.00032727,4]
[341202336,1730632247043,-4256.03,0.00032727,3]
[341202337,1730632247052,-500.0,0.00032728,4]
[341202338,1730632247061,-500.0,0.00032728,4]
[341202339,1730632247071,-500.0,0.00032728,4]
[341202340,1730632247080,-500.0,0.00032728,4]
[341202341,1730632247090,-500.0,0.00032728,4]
[341202342,1730632247100,-704.83,0.0003273,4]
[341202343,1730632247112,-1000.0,0.000328,30]
[341202344,1730632247121,-115993.25776186,0.00032805,2]
[341202345,1730632247131,-151.0,0.00032849,120]
[341202346,1730632247140,-500.0,0.00032876,7]
[341202347,1730632247149,-176.694851,0.00032877,120]
[341202348,1730632247158,-500.0,0.00032878,2]
[341202349,1730632247168,-204.06620242,0.00032878,2]
[341202350,1730632247177,-249.15450092,0.00032878,2]
[341202351,1730632247187,-5186.00289462,0.000329,2]
[341202352,1730632247198,-150.112233,0.000329,10]
[341202353,1730632247208,-150.112233,0.000329,14]
[341202354,1730632247218,-23569.63125381,0.0003296,2]
[341202355,1730632247230,-1000.0,0.00032966,6]
[341202356,1730632247242,-2360.32199644,0.00033,7]
[341202357,1730632247252,-301.53448018,0.00033,30]
[341202358,1730632247262,-7125.77,0.00033,120]
[341202359,1730632247272,-7752.0,0.00033,2]
[341202360,1730632247283,-20246.54837036,0.00033,2]
[341202361,1730632247296,-10000.0,0.00033,5]
[341202362,1730632247306,-150.112233,0.00033,12]
[341202363,1730632247318,-150.0,0.00033,30]
[341202364,1730632247329,-5000.0,0.00033,120]
[341202365,1730632247339,-691.71,0.00033001,4]
[341202366,1730632247350,-4256.03,0.00033001,3]
[341202367,1730632247361,-500.0,0.00033002,4]
[341202368,1730632247370,-500.0,0.00033002,4]
[341202369,1730632247380,-578.92606275,0.00033002,4]
[341202370,1730632247459,-500.0,0.00033002,4]
[341202371,1730632247469,-469.43,0.00033002,4]
[341202372,1730632247479,-704.83,0.00033004,4]
[341202373,1730632247489,-198.627615,0.00033033,2]
[341202374,1730632247498,-145772.54579984,0.00033071,2]
[341202375,1730632247568,-1362.40072035,0.00033071,2]
[341202376,1730632247580,-438.51725647,0.00033071,2]
[341202377,1730632247654,-162.019444,0.0003092,7]
[341202378,1730632247664,-612.21,0.00031076,3]
[341202379,1730632247674,-158.970556,0.00031084,7]
[341202380,1730632430687,150.0,0.0002,2]
[341202381,1730632430993,150.0,0.00017,2]
[341202382,1730632431425,150.0,0.00014,2]
[341202383,1730632431951,150.0,0.00011,2]
[341202384,1730632453813,5000.0,0.00033408,30]
[341202385,1730632575993,165.013794,0.00013973,2]
[341202388,1730633236122,-150.0,0.00022,30]
[341202389,1730633236150,-150.0,0.00023,2]
[341202390,1730633236171,-47.14316148,0.00024358,2]
[341202393,1730633361101,-232.9054363,0.000212,2]
[341202427,1730633438099,-61.0945637,0.000212,2]
[341202428,1730633438110,-1293.1058082,0.000235,2]
[341202429,1730633438121,-123.77283452,0.00024358,2]
[341202430,1730633438132,-150.0,0.00025,2]
[341202431,1730633438143,-150.0,0.00025,30]
[341202432,1730633438153,-157.0,0.00025,2]
[341202433,1730633438163,-161.0,0.00025,2]
[341202434,1730633438172,-250.0,0.00025004,2]
[341202435,1730633438183,-161.0,0.0002589,2]
[341202436,1730633438194,-294.2970402,0.00025916,2]
[341202437,1730633438204,-501.4360792,0.00025938,2]
[341202438,1730633438215,-170.915996,0.00026018,2]
[341202439,1730633438226,-500.0,0.00026173,2]
[341202440,1730633438235,-500.0,0.00026173,2]
[341202441,1730633438246,-300.0,0.00026198,2]
[341202442,1730633438267,-300.0,0.00026198,2]
[341202443,1730633438279,-5000.0,0.00026198,2]
[341202444,1730633438289,-24900.0,0.00026199,2]
[341202445,1730633438299,-500.0,0.00027441,2]
[341202446,1730633438308,-500.0,0.00027441,2]
[341202447,1730633438318,-300.0,0.00027441,2]
[341202448,1730633438327,-974.82924731,0.00027442,2]
[341202449,1730633438338,-500.0,0.00027542,2]
[341202450,1730633438347,-1000.0,0.00027542,2]
[341202451,1730633438357,-170.915996,0.00027678,2]
[341202452,1730633438366,-353.43163582,0.000279,2]
[341202453,1730633438376,-150.0,0.00028,2]
[341202454,1730633438387,-150.0,0.00028,30]
[341202455,1730633438397,-192.698,0.00028284,19]
[341202456,1730633438406,-420.0,0.00028347,2]
[341202457,1730633438417,-420.0,0.00028818,2]
[341202458,1730633438428,-169.238879,0.00029228,2]
[341202459,1730633438439,-974.82924726,0.00029507,2]
[341202460,1730633438450,-161.1140976,0.00029947,2]
[341202461,1730633438460,-326.05204135,0.00030047,2]
[341202462,1730633438471,-3832.19143833,0.00030135,2]
[341202469,1730633439919,-1167.80856167,0.00030135,2]
[341202470,1730633439929,-500.0,0.00030136,4]
[341202471,1730633439940,-230.85837483,0.00030136,4]
[341202472,1730633439952,-269.14162517,0.00030136,4]
[341202473,1730633439961,-500.0,0.00030136,4]
[341202474,1730633439970,-500.0,0.00030136,4]
[341202475,1730633439980,-41.13003577,0.00030136,4]
[341202476,1730633439991,-471.04138064,0.00030136,4]
[341202477,1730633440002,-500.0,0.00030136,4]
[341202478,1730633440011,-500.0,0.00030136,4]
[341202479,1730633440021,-500.0,0.00030136,4]
[341202480,1730633440031,-500.0,0.00030136,4]
[341202481,1730633440040,-505.06550275,0.00030136,4]
[341202482,1730633440051,-500.0,0.00030136,4]
[341202483,1730633440062,-499.11138531,0.00030136,3]
[341202487,1730633442898,-269.4068343,0.00030136,3]
[341202488,1730633442930,-1891.50178039,0.00030136,3]
[341202489,1730633442940,-51.6338105,0.00030136,4]
[341202501,1730633445992,-448.3661895,0.00030136,4]
[341202502,1730633446003,-244.69976844,0.00030137,2]
[341202503,1730633446013,-500.0,0.0003041,4]
[341202504,1730633446022,-500.0,0.0003041,4]
[341202505,1730633446032,-500.0,0.0003041,4]
[341202506,1730633446042,-500.0,0.0003041,4]
[341202507,1730633446052,-420.82811206,0.0003041,4]
[341202508,1730633602117,165.013794,0.00013973,2]
[341202509,1730633990591,1063.56,0.00021,2]
[341202518,1730634211299,161.331296,0.00013973,2]
[341202519,1730634436156,-199.839,0.00021513,2]
[341202520,1730634436181,-302.8788636,0.00025,2]
[341202521,1730634436203,-302.8788636,0.0002525,2]
[341202522,1730634436225,-302.8788636,0.000255,2]
[341202523,1730634436247,-302.9999667,0.0002575,2]
[341202524,1730634436274,-194.62689863,0.0002819,2]
[341202543,1730634632186,-300.0,0.0002819,2]
[341202544,1730634632197,-679.68370705,0.00028191,2]
[341202545,1730634632209,-330.14448272,0.00028191,2]
[341202569,1730634640215,-2181.80138934,0.00028312,2]
[341202587,1730634643114,-6586.61867176,0.00028312,2]
[341202593,1730635273809,161.331296,0.00013973,2]
[341202594,1730635569048,150.0,0.0002,2]
[341202595,1730635569509,150.0,0.00017,2]
[341202596,1730635569901,150.0,0.00014,2]
[341202597,1730635570322,150.0,0.00011,2]
[341202598,1730635573413,150.0,0.0002,30]
[341202599,1730635573814,150.0,0.00017,30]
[341202600,1730635574225,150.0,0.00014,30]
[341202601,1730635598123,-169.181,0.00021432,2]
[341202602,1730635598144,-150.0,0.00022,2]
[341202603,1730635598164,-23.3975267,0.00022,30]
[341202604,1730635652126,-126.6024733,0.00022,30]
[341202605,1730635652148,-150.0,0.00025,2]
[341202606,1730635652170,-150.0,0.00025,30]
[341202607,1730635652190,-164.04218218,0.00025095,2]
[341202614,1730635832006,166.6666672,0.0002386,2]
[341202615,1730635832190,-81.57375882,0.00025095,2]
[341202616,1730635832201,-918.42624118,0.00025292,2]
[341202617,1730635832243,-30243.44628995,0.00025292,2]
[341202618,1730635832255,-300.0,0.00025293,2]
[341202619,1730635832266,-300.0,0.00025293,2]
[341202620,1730635832275,-214.61753262,0.00025293,2]
[341202621,1730635832286,-24900.0,0.00025294,2]
[341202622,1730635832296,-169.20889147,0.00025689,2]
[341202623,1730635832306,-165.18012,0.00025789,2]
[341202624,1730635832317,-165.18012,0.00026058,2]
[341202625,1730635832330,-165.18012,0.00026327,2]
[341202626,1730635832340,-212.39187337,0.00026547,2]
[341202627,1730635832352,-165.18012,0.00026595,2]
[341202628,1730635832362,-500.0,0.00026609,2]
[341202629,1730635832373,-5000.0,0.00026645,2]
[341202630,1730635832383,-5000.0,0.00026647,2]
[341202631,1730635832392,-5000.0,0.00026647,2]
[341202632,1730635832403,-301.51056196,0.00026673,2]
[341202633,1730635832415,-500.0,0.00026673,2]
[341202634,1730635832426,-500.0,0.00026673,2]
[341202635,1730635832435,-165.18012,0.00026864,2]
[341202636,1730635832446,-171.957086,0.00026941,2]
[341202637,1730635832455,-171.957086,0.00026961,2]
[341202638,1730635832465,-171.957086,0.0002698,2]
[341202639,1730635832477,-171.957086,0.00026999,2]
[341202640,1730635832487,-171.957086,0.00027018,2]
[341202641,1730635832499,-171.957086,0.00027038,2]
[341202642,1730635832509,-171.957086,0.00027057,2]
[341202643,1730635832518,-171.957086,0.00027076,2]
[341202644,1730635832528,-165.18012,0.00027133,2]
[341202645,1730635832537,-420.0,0.00027392,2]
[341202646,1730635832547,-398.0,0.00027822,2]
[341202647,1730635832558,-169.238879,0.00027837,2]
[341202648,1730635832570,-212.39187335,0.00027885,2]
[341202649,1730635832581,-1000.0,0.00027979,2]
[341202650,1730635832591,-150.0,0.00028,2]
[341202651,1730635832601,-150.0,0.00028,30]
[341202652,1730635832611,-1000.0,0.00028042,2]
[341202653,1730635832622,-465.4688816,0.00028042,2]
[341202654,1730635832633,-1004.89448277,0.00028091,2]
[341202655,1730635832642,-3798.03963871,0.00028161,2]
[341202656,1730635832652,-192.698,0.0002831,19]
[341202657,1730635832662,-180.0,0.000284,120]
[341202658,1730635832674,-5000.0,0.00028816,2]
[341202659,1730635832689,-212.39187335,0.00029224,2]
[341202660,1730635832699,-524.86271805,0.00029265,2]
[341202661,1730635832712,-587.0,0.00029666,2]
[341202662,1730635832723,-160.0,0.0003,120]
[341202663,1730635832734,-175.29,0.0003,4]
[341202664,1730635832745,-157.462,0.00030069,120]
[341202665,1730635832756,-2573.11,0.00030125,10]
[341202666,1730635832769,-3087.73,0.00030126,10]
[341202667,1730635832779,-5000.0,0.00030135,2]
[341202668,1730635832788,-500.0,0.00030136,4]
[341202669,1730635832798,-500.0,0.00030136,4]
[341202670,1730635832808,-500.0,0.00030136,4]
[341202671,1730635832821,-513.58377755,0.00030136,4]
[341202672,1730635832831,-500.0,0.00030136,4]
[341202673,1730635832841,-500.0,0.00030136,4]
[341202674,1730635832851,-500.0,0.00030136,4]
[341202675,1730635832861,-500.0,0.00030136,4]
[341202676,1730635832873,-525.11143526,0.00030136,4]
[341202677,1730635832885,-500.0,0.00030136,4]
[341202678,1730635832896,-500.0,0.00030136,4]
[341202679,1730635832905,-500.0,0.00030136,4]
[341202680,1730635832916,-500.0,0.00030136,4]
[341202681,1730635832931,-200.0,0.00030136,4]
[341202682,1730635832940,-641.58245273,0.00030136,2]
[341202683,1730635832952,-500.0,0.00030136,4]
[341202684,1730635832963,-500.0,0.00030136,4]
[341202685,1730635832973,-294.02120248,0.00030136,4]
[341202686,1730635832983,-500.0,0.00030136,4]
[341202687,1730635832995,-500.0,0.00030136,4]
[341202688,1730635833005,-500.0,0.00030136,4]
[341202689,1730635833015,-500.0,0.00030136,4]
[341202690,1730635833025,-621.19,0.00030136,4]
[341202691,1730635833034,-597.28501865,0.00030136,4]
[341202692,1730635833044,-206.8805465,0.00030136,4]
[341202693,1730635833054,-500.0,0.00030136,4]
[341202694,1730635833064,-334.78708279,0.00030136,4]
[341202695,1730635833074,-500.0,0.00030136,4]
[341202696,1730635833084,-500.0,0.00030136,4]
[341202697,1730635833094,-500.0,0.00030136,4]
[341202698,1730635833104,-2549.19,0.00030136,3]
[341202699,1730635833114,-236.67755582,0.00030137,2]
[341202700,1730635833124,-5000.0,0.00030409,2]
[341202701,1730635833133,-225.44532352,0.0003041,4]
[341202702,1730635833143,-458.71322394,0.0003041,4]
[341202703,1730635833153,-500.0,0.0003041,4]
[341202704,1730635833162,-512.50791169,0.0003041,4]
[341202705,1730635833174,-500.0,0.0003041,4]
[341202706,1730635833184,-394.78910889,0.0003041,4]
[341202707,1730635833193,-206.97915697,0.0003041,4]
[341202708,1730635833203,-500.0,0.0003041,4]
[341202709,1730635833212,-500.0,0.0003041,4]
[341202710,1730635833221,-504.06062617,0.0003041,4]
[341202711,1730635833231,-500.0,0.0003041,4]
[341202712,1730635833241,-500.0,0.0003041,4]
[341202713,1730635833251,-500.0,0.0003041,4]
[341202714,1730635833261,-500.0,0.0003041,4]
[341202715,1730635833271,-237.33,0.0003041,4]
[341202716,1730635833280,-339.31,0.0003041,4]
[341202717,1730635833289,-500.0,0.0003041,4]
[341202718,1730635833299,-500.0,0.0003041,4]
[341202719,1730635833309,-575.20149549,0.0003041,4]
[341202720,1730635833319,-500.0,0.0003041,4]
[341202721,1730635833330,-500.0,0.0003041,4]
[341202722,1730635833342,-2549.19,0.0003041,3]
[341202723,1730635833352,-1500.0,0.00030484,2]
[341202724,1730635833362,-1500.0,0.00030547,2]
[341202725,1730635833373,-212.39187335,0.00030562,2]
[341202726,1730635833386,-500.0,0.00030684,4]
[341202727,1730635833399,-500.0,0.00030684,4]
[341202728,1730635833411,-500.0,0.00030684,4]
[341202729,1730635833424,-500.0,0.00030684,4]
[341202730,1730635833436,-500.0,0.00030684,4]
[341202731,1730635833449,-500.0,0.00030684,4]
[341202732,1730635833461,-500.0,0.00030684,4]
[341202733,1730635833472,-500.0,0.00030684,4]
[341202734,1730635833484,-500.0,0.00030684,4]
[341202735,1730635833495,-503.58,0.00030684,4]
[341202736,1730635833507,-500.0,0.00030684,4]
[341202737,1730635833519,-2549.19,0.00030684,3]
[341202738,1730635833530,-467.9931359,0.00030729,2]
[341202739,1730635833543,-3526.03076284,0.00030755,2]
[341202740,1730635833556,-500.0,0.00030942,5]
[341202741,1730635833567,-500.0,0.00030942,5]
[341202742,1730635833580,-500.0,0.00030958,4]
[341202743,1730635833592,-180.07787461,0.00030958,4]
[341202744,1730635833603,-500.0,0.00030958,4]
[341202745,1730635833614,-500.0,0.00030958,4]
[341202746,1730635833627,-500.0,0.00030958,4]
[341202747,1730635833639,-500.0,0.00030958,4]
[341202748,1730635833651,-500.0,0.00030958,4]
[341202749,1730635833663,-500.0,0.00030958,4]
[341202750,1730635833675,-500.0,0.00030958,4]
[341202751,1730635833686,-500.0,0.00030958,4]
[341202752,1730635833698,-2549.19,0.00030958,3]
[341202753,1730635833709,-150.0,0.00031,2]
[341202754,1730635833722,-150.0,0.00031,30]
[341202755,1730635833734,-150.0,0.00031168,2]
[341202756,1730635833745,-150.0,0.00031168,2]
[341202757,1730635833757,-546.20792493,0.00031232,4]
[341202758,1730635833770,-300.99,0.00031232,4]
[341202759,1730635833782,-500.0,0.00031232,4]
[341202760,1730635833793,-500.0,0.00031232,4]
[341202761,1730635833805,-500.0,0.00031232,4]
[341202762,1730635833818,-500.0,0.00031232,4]
[341202763,1730635833830,-500.0,0.00031232,4]
[341202764,1730635833842,-500.0,0.00031232,4]
[341202765,1730635833855,-500.0,0.00031232,4]
[341202766,1730635833867,-2549.19,0.00031232,3]
[341202767,1730635833877,-500.0,0.00031506,4]
[341202768,1730635833887,-452.93426828,0.00031506,4]
[341202769,1730635833900,-500.0,0.00031506,4]
[341202770,1730635833913,-500.0,0.00031506,4]
[341202771,1730635833924,-500.0,0.00031506,4]
[341202772,1730635833934,-500.0,0.00031506,4]
[341202773,1730635833946,-500.0,0.00031506,4]
[341202774,1730635833960,-2549.19,0.00031506,3]
[341202775,1730635833971,-600.0,0.00031748,2]
[341202776,1730635833982,-500.0,0.0003178,4]
[341202777,1730635833994,-304.1542225,0.0003178,4]
[341202778,1730635834005,-387.71726001,0.0003178,4]
[341202779,1730635834017,-500.0,0.0003178,4]
[341202780,1730635834028,-151.0,0.0003178,7]
[341202781,1730635834040,-500.0,0.0003178,4]
[341202782,1730635834051,-500.0,0.0003178,4]
[341202783,1730635834063,-212.39187335,0.000319,2]
[341202784,1730635834075,-999.0,0.00031945,120]
[341202785,1730635834086,-160.0,0.00032,120]
[341202786,1730635834098,-26131.593769,0.00032,2]
[341202787,1730635834110,-157.138281,0.00032,7]
[341202788,1730635834121,-151.0,0.00032,7]
[341202789,1730635834131,-151.0,0.00032,7]
[341202790,1730635834141,-161.069944,0.00032,7]
[341202791,1730635834152,-161.069944,0.00032,7]
[341202792,1730635834164,-208.251043,0.00032,7]
[341202793,1730635834176,-151.0,0.00032,7]
[341202794,1730635834186,-708.96304213,0.00032053,2]
[341202795,1730635834196,-500.0,0.00032054,4]
[341202796,1730635834209,-500.0,0.00032054,4]
[341202797,1730635834220,-500.0,0.00032054,4]
[341202798,1730635834232,-500.0,0.00032054,4]
[341202799,1730635834243,-600.0,0.00032079,2]
[341202800,1730635834255,-823.0,0.00032128,2]
[341202801,1730635834267,-1000.0,0.00032312,5]
[341202802,1730635834278,-1000.0,0.00032312,5]
[341202803,1730635834289,-500.0,0.00032328,4]
[341202804,1730635834299,-500.0,0.00032328,4]
[341202805,1730635834310,-212.18624996,0.00032328,4]
[341202806,1730635834324,-500.0,0.00032328,4]
[341202807,1730635834335,-1199.42896407,0.0003241,2]
[341202808,1730635834347,-500.0,0.00032489,2]
[341202809,1730635834357,-10000.0,0.000325,10]
[341202810,1730635834369,-500.0,0.00032602,4]
[341202811,1730635834382,-500.0,0.00032602,4]
[341202812,1730635834394,-500.0,0.00032602,4]
[341202813,1730635834407,-150.0,0.000327,2]
[341202814,1730635834418,-500.0,0.00032876,7]
[341202815,1730635834429,-500.0,0.00032876,4]
[341202816,1730635834440,-500.0,0.00032876,4]
[341202817,1730635834450,-500.0,0.00032876,4]
[341202818,1730635834460,-176.694851,0.00032877,120]
[341202819,1730635834472,-15849.75578068,0.00032971,3]
[341202820,1730635834484,-1000.0,0.00032971,2]
[341202821,1730635834496,-151.0,0.00032971,14]
[341202822,1730635834507,-151.0,0.00032971,14]
[341202823,1730635834517,-161.069944,0.00032971,14]
[341202824,1730635834529,-161.069944,0.00032971,14]
[341202825,1730635834541,-621.97426688,0.00033,7]
[341202826,1730635834553,-150.01,0.0003307,2]
[341202827,1730635834564,-781.80695574,0.0003307,2]
[341202828,1730635834575,-145694.75567606,0.00033071,2]
[341202831,1730635838238,-731.12193548,0.00025193,2]
[341202832,1730635838248,-199.8200054,0.00025293,2]
[341202833,1730635838258,-500.0,0.00025293,2]
[341202834,1730635838269,-500.0,0.00025293,2]
[341202835,1730635838280,-304.20674107,0.00025293,2]
[341202836,1730635838290,-180.78,0.00030116,3]
[341202837,1730635838299,-361.56,0.00031486,3]
[341202838,1730635838308,-272.51131805,0.0003178,3]
[341202875,1730635846180,-731.12193544,0.0002758,2]
[341202877,1730635846190,-573.08480563,0.00029966,2]
[341202880,1730636362749,44.96800723,0.00013973,2]
[341202881,1730636362777,120.70935877,0.00013973,2]
[341202887,1730636853109,-189.8,0.000284,120]
[341202888,1730636853131,-181.69331088,0.0002844,2]
[341202889,1730636958098,-214.91092895,0.000212,2]
[341202890,1730636958120,-300.0,0.00021999,2]
[341202891,1730636958142,-121.78188125,0.00022,30]
[341202892,1730636960117,-3386.90253449,0.00022,30]
[341202914,1730637032348,-300.0,0.00021999,2]
[341202915,1730637032359,-5966.56234685,0.00022,30]
[341202916,1730637032372,-848.90187684,0.00022,30]
[341202917,1730637032384,-18990.31772513,0.00022,30]
[341202918,1730637032397,-420.0,0.00023906,2]
[341202919,1730637032407,-94.28970182,0.00025977,2]
[341202979,1730637412295,165.677366,0.00013973,2]
[341202980,1730637486184,158.62858224,0.00013973,2]
[341202982,1730638044147,-163.0,0.00025,2]
[341202983,1730638044174,-302.8788636,0.00025,2]
[341202984,1730638044199,-302.8788636,0.0002525,2]
[341202985,1730638044222,-302.8788636,0.000255,2]
[341202986,1730638044244,-302.9999667,0.0002575,2]
[341202987,1730638044267,-170.213398,0.000259,2]
[341203005,1730638232517,-52.786602,0.000259,2]
[341203006,1730638232527,-261.9111831,0.00026915,2]
[341203007,1730638232536,-195.0,0.0002692,2]
[341203008,1730638232545,-300.0,0.0002692,2]
[341203009,1730638232554,-5420.28321199,0.00026921,2]
[341203010,1730638232672,-171.64999506,0.00026921,2]